fUSD/lending_fUSD_20260412
["ID","MTS","AMOUNT","RATE_DAILY","PERIOD"]
[420298183,1775928649803,-179.92,0.00019452,60]
[420298184,1775928649812,-179.92,0.00019452,60]
[420298185,1775928649822,-179.92,0.00019452,60]
[420298186,1775928649831,-189.77,0.00019452,60]
[420298187,1775928649844,-829.30831666,0.00019499,2]
[420298188,1775928649853,-4425.07531768,0.00019506,2]
[420298189,1775928649864,-169.6,0.00019513,2]
[420298190,1775928649873,-162.0,0.00019542,2]
[420298191,1775928649886,-1173.1,0.00019611,2]
[420298192,1775928649901,-571.72218855,0.00019716,2]
[420298193,1775928649911,-571.53621246,0.00019716,2]
[420298194,1775928649921,-469.24647883,0.00019742,2]
[420298195,1775928649935,-4542.42450242,0.00019851,2]
[420298196,1775928649947,-10243.92895819,0.000199,2]
[420298197,1775928651092,-3008.1072702,0.000199,2]
[420298198,1775928651102,-557.18463908,0.000199,3]
[420298199,1775928651124,-785.61,0.0001991,2]
[420298200,1775928651144,-11185.89490788,0.00019921,2]
[420298201,1775928651158,-1348.54830947,0.00019951,2]
[420298202,1775928651171,-169.6,0.00019976,2]
[420298203,1775928651183,-403.0,0.0002,2]
[420298204,1775928651193,-600.0,0.0002,2]
[420298205,1775928651207,-1000.0,0.0002,5]
[420298206,1775928651223,-825.0,0.0002,30]
[420298207,1775928651233,-550.0,0.0002,30]
[420298208,1775928651248,-550.0,0.0002,30]
[420298209,1775928651276,-482.0,0.0002,30]
[420298210,1775928651285,-500.0,0.0002,30]
[420298211,1775928651294,-500.0,0.0002,30]
[420298212,1775928651322,-429.6411792,0.0002,30]
[420298213,1775928651334,-43.3588208,0.0002,30]
[420298214,1775928651351,-161.0,0.0002,30]
[420298215,1775928651373,-4193.17426442,0.0002,2]
[420298216,1775928651399,-200.0,0.0002,10]
[420298217,1775928651408,-192.44,0.0002,2]
[420298218,1775928651418,-150.0,0.0002,2]
[420298219,1775928651437,-150.0,0.0002,2]
[420298220,1775928651448,-155.24519193,0.0002,2]
[420298221,1775928651458,-95.73575983,0.0002,20]
[420298222,1775928651684,-483.0,0.000163,2]
[420298223,1775928651694,-2120.0,0.000163,2]
[420298224,1775928651708,-548.19350696,0.00019851,2]
[420298225,1775928651723,-55.04936399,0.0002,20]
[420298226,1775928651742,-359.542571,0.0002,2]
[420298227,1775928651755,-154.11275296,0.00020027,2]
[420298228,1775928651770,-45.39812974,0.00020027,2]
[420298229,1775928651788,-150.0,0.00020035,2]
[420298230,1775928651818,-75.08186226,0.0002005,2]
[420298231,1775928651850,-739.91813774,0.0002005,2]
[420298232,1775928651868,-916.0,0.0002005,2]
[420298233,1775928651879,-1840.0,0.0002005,2]
[420298234,1775928651890,-1434.62885177,0.0002005,2]
[420298235,1775928651918,-645.75968916,0.0002005,2]
[420298236,1775928666655,156.0,0.00029534,120]
[420298237,1775928914353,168.0,0.00019477,120]
[420298238,1775928915380,168.0,0.00020451,120]
[420298239,1775928916214,168.0,0.00021474,120]
[420298240,1775928917538,168.0,0.00022547,120]
[420298241,1775928918819,168.0,0.00023675,120]
[420298242,1775928920205,168.0,0.00024858,120]
[420298243,1775928942270,1600.0,0.00024939,120]
[420298244,1775928974501,200.0,0.0003,120]
[420298246,1775929204651,200.0,0.0003,120]
[420298247,1775929269727,200.0,0.0003,120]
[420298248,1775929464511,158.0,5.205e-05,2]
[420298249,1775929464614,156.0,5.205e-05,2]
[420298250,1775929464669,156.0,5.205e-05,2]
[420298251,1775929464739,156.0,5.205e-05,2]
[420298252,1775929464819,156.0,5.205e-05,2]
[420298253,1775929465223,156.0,5.205e-05,2]
[420298254,1775929465461,156.0,5.205e-05,2]
[420298255,1775929465712,156.0,5.205e-05,2]
[420298256,1775929465958,156.0,5.205e-05,2]
[420298257,1775929466215,156.0,5.205e-05,2]
[420298258,1775929466547,156.0,5.205e-05,2]
[420298259,1775929466790,156.0,5.205e-05,2]
[420298260,1775929578275,500.0,0.0003013,120]
[420298268,1775929831390,-171.11,9.034e-05,2]
[420298270,1775929831400,-231.00590291,9.667e-05,2]
[420298277,1775929831584,-18.99409709,9.667e-05,2]
[420298278,1775929831595,-250.0,9.938e-05,2]
[420298279,1775929831615,-250.0,0.00010046,2]
[420298280,1775929831628,-101.43419494,0.00010289,2]
[420298281,1775929831645,-383.37719612,0.00010289,2]
[420298282,1775929831682,-1200.0,0.00010298,2]
[420298283,1775929831692,-253.6054,0.00010299,2]
[420298284,1775929831715,-47369.16858698,0.00010299,2]
[420298285,1775929831746,-27771.18357728,0.00010299,2]
[420298286,1775929831759,-51210.83563052,0.00010299,2]
[420298287,1775929831782,-4444.02619997,0.00010299,2]
[420298288,1775929831805,-1110.61079819,0.00010299,2]
[420298289,1775929831818,-1346.55708434,0.00010299,2]
[420298296,1775929841125,-323.73487732,0.00010298,2]
[420298297,1775929841137,-191.91877915,0.00010298,2]
[420298298,1775929841150,-500.0,0.00010298,2]
[420298299,1775929841163,-500.0,0.00010298,2]
[420298300,1775929841174,-526.68327747,0.00010298,2]
[420298301,1775929841183,-500.0,0.00010298,2]
[420298302,1775929841195,-500.0,0.00010298,2]
[420298303,1775929841207,-290.1178265,0.00010298,2]
[420298304,1775929841224,-500.0,0.00010298,2]
[420298305,1775929841233,-500.0,0.00010298,2]
[420298306,1775929841242,-500.0,0.00010298,2]
[420298307,1775929841251,-500.0,0.00010298,2]
[420298308,1775929841266,-219.26798994,0.00010298,2]
[420298309,1775929841276,-500.0,0.00010298,2]
[420298310,1775929841286,-500.0,0.00010298,2]
[420298311,1775929841298,-500.0,0.00010298,2]
[420298312,1775929841311,-332.93226962,0.00010298,2]
[420298313,1775929841324,-167.06773038,0.00010298,2]
[420298314,1775929841334,-500.0,0.00010298,2]
[420298315,1775929841349,-527.2216268,0.00010298,2]
[420298316,1775929841360,-500.0,0.00010298,2]
[420298317,1775929841373,-500.0,0.00010298,2]
[420298318,1775929841382,-500.0,0.00010298,2]
[420298319,1775929841397,-500.0,0.00010298,2]
[420298320,1775929841414,-500.0,0.00010298,2]
[420298321,1775929841423,-6.7821408,0.00010299,2]
[420298322,1775929841454,-1263.95393665,0.00010299,2]
[420298323,1775929841496,-826.56169198,0.00010299,2]
[420298324,1775929841531,-774.6985844,0.00010299,2]
[420298325,1775929841556,-764.8018764,0.00010299,2]
[420298326,1775929841567,-1176.555,0.00010299,2]
[420298327,1775929841599,-1972.78274802,0.00010299,2]
[420298328,1775929841610,-2194.74,0.00010299,2]
[420298329,1775929841655,-1852.927,0.00010299,2]
[420298330,1775929841708,-17197.28223494,0.00010299,2]
[420298331,1775929841732,-34331.38532584,0.00010299,2]
[420298332,1775929841757,-2987.2,0.00010299,2]
[420298333,1775929841769,-2095.592,0.00010299,2]
[420298334,1775929841780,-1603.7496992,0.00010299,2]
[420298335,1775929841814,-968.0,0.00010299,2]
[420298336,1775929841992,-154862.95716964,0.00010299,2]
[420298344,1775929842925,-1084132.80099254,0.00010299,2]
[420298345,1775929842943,-84730.33906128,0.00010299,2]
[420298346,1775929842969,-82800.37404457,0.00010299,2]
[420298357,1775929845511,-1959.29828611,0.00010299,2]
[420298358,1775929845695,-68525.97040653,0.00010299,2]
[420298359,1775929845972,-210936.77062382,0.00010299,2]
[420298360,1775929845998,-395.94582102,0.00010299,2]
[420298361,1775929846030,-234.27094198,0.000103,2]
[420298363,1775929846063,-3028.28300162,0.000103,2]
[420298364,1775929846072,-500.0,0.00010373,2]
[420298365,1775929846093,-500.0,0.00010393,2]
[420298366,1775929846111,-500.0,0.00010393,2]
[420298367,1775929846121,-594.61806827,0.00010393,2]
[420298368,1775929846158,-150.0,0.00010397,2]
[420298369,1775929846168,-1389.12509704,0.00010398,2]
[420298370,1775929846187,-150.0,0.00010398,2]
[420298371,1775929846199,-150.0,0.00010398,2]
[420298372,1775929846229,-453.38,0.00010398,2]
[420298373,1775929846238,-2388.498,0.00010398,2]
[420298374,1775929846268,-176.441,0.00010398,2]
[420298375,1775929846278,-302047.15959158,0.00010399,2]
[420298376,1775929892513,181.0,0.000248,120]
[420298377,1775929908245,181.0,0.000248,120]
[420298378,1775929931398,181.0,0.000248,120]
[420298379,1775930048628,195.0,0.00025,120]
[420298380,1775930053708,163.0,0.00025753,120]
[420298381,1775930277368,5020.0,0.0003013,120]
[420298382,1775930324091,3710.05472745,0.0003,120]
[420298383,1775930337841,152.48,0.0003013,120]
[420298384,1775930347923,152.48,0.00029126,120]
[420298385,1775930357785,152.48,0.00028121,120]
[420298386,1775930367858,152.48,0.00027117,120]
[420298387,1775930377966,152.48,0.00026113,120]
[420298388,1775930388780,152.48,0.00025108,120]
[420298389,1775930397823,152.48,0.00024104,120]
[420298390,1775930407855,152.48,0.000231,120]
[420298391,1775930417855,152.48,0.00022095,120]
[420298392,1775930427786,152.5,0.00021091,120]
[420298393,1775930629377,2334.58,0.00030137,120]
[420298395,1775930792187,50000.0,0.0003,120]
[420298396,1775930804266,50000.0,0.0003,120]
[420298397,1775930814886,50000.0,0.0003,120]
[420298398,1775930818824,50000.0,0.0003,120]
[420298399,1775930824922,50000.0,0.0003,120]
[420298400,1775930834021,50000.0,0.0003,120]
[420298401,1775930841890,50000.0,0.0003,120]
[420298404,1775931031834,-150.0,9.798e-05,2]
[420298405,1775931031851,-1200.0,9.798e-05,2]
[420298406,1775931031890,-360.95755953,9.799e-05,2]
[420298407,1775931031902,-500.0,9.799e-05,2]
[420298408,1775931031922,-500.0,9.799e-05,2]
[420298409,1775931031934,-203.08247855,9.799e-05,2]
[420298410,1775931031946,-500.0,9.799e-05,2]
[420298411,1775931031966,-218.40348827,9.799e-05,2]
[420298412,1775931031979,-500.0,9.799e-05,2]
[420298413,1775931031991,-500.0,9.799e-05,2]
[420298414,1775931032024,-500.0,9.799e-05,2]
[420298415,1775931032034,-500.0,9.799e-05,2]
[420298416,1775931032045,-500.0,9.799e-05,2]
[420298417,1775931032069,-217.3787059,9.799e-05,2]
[420298418,1775931032078,-500.0,9.799e-05,2]
[420298419,1775931032090,-500.0,9.799e-05,2]
[420298420,1775931032112,-500.0,9.799e-05,2]
[420298421,1775931032121,-500.0,9.799e-05,2]
[420298423,1775931032134,-500.0,9.799e-05,2]
[420298425,1775931032148,-500.0,9.799e-05,2]
[420298426,1775931032159,-500.0,9.799e-05,2]
[420298427,1775931032171,-500.0,9.799e-05,2]
[420298429,1775931032181,-500.0,9.799e-05,2]
[420298430,1775931032192,-500.0,9.799e-05,2]
[420298432,1775931032206,-500.0,9.799e-05,2]
[420298433,1775931032215,-500.0,9.799e-05,2]
[420298434,1775931032225,-230.12590195,9.799e-05,2]
[420298435,1775931032234,-500.0,9.799e-05,2]
[420298436,1775931032260,-500.0,9.799e-05,2]
[420298437,1775931032271,-176.27480596,9.799e-05,2]
[420298438,1775931032281,-500.0,9.799e-05,2]
[420298440,1775931032295,-500.0,9.799e-05,2]
[420298441,1775931032311,-500.0,9.799e-05,2]
[420298443,1775931032321,-500.0,9.799e-05,2]
[420298444,1775931032339,-500.0,9.799e-05,2]
[420298445,1775931032352,-500.0,9.799e-05,2]
[420298446,1775931032363,-500.0,9.799e-05,2]
[420298447,1775931032387,-500.0,9.799e-05,2]
[420298448,1775931032395,-500.0,9.799e-05,2]
[420298449,1775931032405,-223.0125902,9.799e-05,2]
[420298450,1775931032424,-500.0,9.799e-05,2]
[420298451,1775931032443,-500.0,9.799e-05,2]
[420298452,1775931032452,-500.0,9.799e-05,2]
[420298453,1775931032473,-500.0,9.799e-05,2]
[420298454,1775931032492,-299.99999999,9.799e-05,2]
[420298455,1775931032504,-250.0,9.8e-05,2]
[420298456,1775931032521,-205.0,9.8e-05,2]
[420298457,1775931032533,-6591.05955265,9.8e-05,2]
[420298458,1775931032549,-781.95418243,9.8e-05,2]
[420298459,1775931032582,-48403.04574352,9.8e-05,2]
[420298460,1775931032749,224.73,5.04e-05,2]
[420298461,1775931037879,-62928.30408142,9.8e-05,2]
[420298462,1775931037904,-3116.83483806,9.8e-05,2]
[420298470,1775931040573,-652.64373122,9.8e-05,2]
[420298472,1775931042898,-152.0,9.783e-05,2]
[420298473,1775931042908,-152.0,9.783e-05,2]
[420298474,1775931042921,-32183.16864913,9.8e-05,2]
[420298475,1775931043075,-19950.89659433,9.8e-05,2]
[420298476,1775931043240,-2119.33276107,9.8e-05,2]
[420298496,1775931045677,-152.0,9.783e-05,2]
[420298497,1775931045686,-625.056514,9.8e-05,2]
[420298498,1775931045801,-62086.86987943,9.8e-05,2]
[420298499,1775931045811,-2326.415,9.999e-05,2]
[420298500,1775931045821,-168.254,9.999e-05,2]
[420298501,1775931045835,-260.91397206,0.0001,2]
[420298502,1775931045853,-224.73,0.00010081,2]
[420298503,1775931045865,-339.38213232,0.00010214,2]
[420298504,1775931045876,-156.18062798,0.00010214,2]
[420298505,1775931045892,-223.96612989,0.00010273,2]
[420298506,1775931045901,-159.984,0.00010273,2]
[420298507,1775931045910,-500.0,0.00010273,2]
[420298508,1775931045923,-500.0,0.00010273,2]
[420298509,1775931045937,-500.0,0.00010273,2]
[420298510,1775931045946,-500.0,0.00010273,2]
[420298511,1775931045955,-500.0,0.00010273,2]
[420298512,1775931045967,-500.0,0.00010273,2]
[420298513,1775931045986,-323.20759404,0.00010289,2]
[420298514,1775931045995,-91979.53983596,0.00010299,2]
[420298515,1775931046031,-427.46515504,0.00010299,2]
[420298520,1775931120283,-430.95881578,9.799e-05,2]
[420298521,1775931120319,-213.90249257,0.0001,2]
[420298522,1775931120366,-168.25523185,0.00010093,2]
[420298523,1775931120402,-1861.132,0.00010093,2]
[420298524,1775931121201,300.0,0.00010298,2]
[420298525,1775931125953,187.36420703,0.00010273,2]
[420298526,1775931126045,500.0,0.00010273,2]
[420298527,1775931126213,500.0,0.00010273,2]
[420298528,1775931129298,500.0,9.799e-05,2]
[420298529,1775931129365,500.0,9.799e-05,2]
[420298530,1775931129675,500.0,9.799e-05,2]
[420298531,1775931129903,526.27480596,9.799e-05,2]
[420298532,1775931143074,500.0,9.799e-05,2]
[420298533,1775931143163,352.30125902,9.799e-05,2]
[420298534,1775931143244,500.0,9.799e-05,2]
[420298535,1775931143425,76807.4981,9.7e-05,2]
[420298536,1775931158596,500.0,9.799e-05,2]
[420298537,1775931158646,500.0,9.799e-05,2]
[420298538,1775931159135,552.16509413,9.799e-05,2]
[420298539,1775931182473,500.0,0.00010273,2]
[420298540,1775931186213,-287.0,0.00010313,2]
[420298541,1775931186243,-35428.3374006,0.00010314,2]
[420298542,1775931186267,-299.0,0.00010314,2]
[420298543,1775931186300,-2436.63171256,0.00010331,2]
[420298544,1775931186335,-200.0,0.00010347,2]
[420298545,1775931186375,-150.0,0.000104,2]
[420298546,1775931186415,-166.67,0.00010505,2]
[420298547,1775931186449,-11752.5088805,0.000107,2]
[420298548,1775931219061,1000.0,0.00030137,120]
[420298549,1775931249571,150.37,0.00028329,120]
[420298550,1775931254512,150.37,0.00026521,120]
[420298551,1775931259520,150.37,0.00024712,120]
[420298552,1775931267910,1000.0,0.00030137,120]
[420298553,1775931270486,150.37,0.00022904,120]
[420298554,1775931279494,150.38,0.00021096,120]
[420298555,1775931308606,1000.0,0.00030137,120]
[420298556,1775931356583,1000.0,0.00030137,120]
[420298557,1775931387111,166.2,0.00027877,120]
[420298558,1775931392227,166.2,0.00025616,120]
[420298559,1775931397063,166.2,0.00023356,120]
[420298560,1775931402015,166.22,0.00021096,120]
[420298561,1775931404567,289.57922806,0.00030137,120]
[420298562,1775931747235,2000.0,0.00030136,120]
[420298564,1775931770877,2000.0,0.00030136,120]
[420298567,1775931834032,400.87451848,0.00030136,120]
[420298568,1775932219182,171.11,7.688e-05,2]
[420298570,1775932232170,-289.0,9.697e-05,2]
[420298571,1775932232181,-309.36069155,9.698e-05,2]
[420298572,1775932232192,-1200.0,9.698e-05,2]
[420298573,1775932232202,-397.35,9.699e-05,2]
[420298574,1775932232219,-300.0,9.699e-05,2]
[420298575,1775932232228,-300.0,9.699e-05,2]
[420298576,1775932232237,-150.0,9.699e-05,2]
[420298577,1775932232247,-721.11931486,9.699e-05,2]
[420298578,1775932232264,-721.11931486,9.699e-05,2]
[420298579,1775932232274,-721.11931486,9.699e-05,2]
[420298580,1775932232283,-721.11931486,9.699e-05,2]
[420298581,1775932232300,-721.11931486,9.699e-05,2]
[420298582,1775932232309,-721.11931486,9.699e-05,2]
[420298583,1775932232319,-721.11931486,9.699e-05,2]
[420298584,1775932232328,-721.11931486,9.699e-05,2]
[420298585,1775932232345,-721.11931486,9.699e-05,2]
[420298586,1775932232355,-721.11931486,9.699e-05,2]
[420298587,1775932232364,-721.11931486,9.699e-05,2]
[420298588,1775932232376,-721.11931486,9.699e-05,2]
[420298590,1775932232395,-721.11931486,9.699e-05,2]
[420298591,1775932232407,-721.11931486,9.699e-05,2]
[420298592,1775932232418,-721.11931486,9.699e-05,2]
[420298593,1775932232439,-721.11931486,9.699e-05,2]
[420298594,1775932232450,-721.11931486,9.699e-05,2]
[420298595,1775932232469,-721.11931486,9.699e-05,2]
[420298596,1775932232481,-721.11931486,9.699e-05,2]
[420298597,1775932232491,-721.11931486,9.699e-05,2]
[420298598,1775932232514,-721.11931486,9.699e-05,2]
[420298599,1775932232538,-721.11931486,9.699e-05,2]
[420298600,1775932232560,-721.11931486,9.699e-05,2]
[420298601,1775932232580,-721.11931486,9.699e-05,2]
[420298602,1775932232601,-721.11931486,9.699e-05,2]
[420298603,1775932232611,-721.11931486,9.699e-05,2]
[420298604,1775932232631,-721.11931486,9.699e-05,2]
[420298605,1775932232643,-721.11931486,9.699e-05,2]
[420298606,1775932232652,-721.11931486,9.699e-05,2]
[420298607,1775932232669,-721.11931486,9.699e-05,2]
[420298608,1775932232687,-721.11931486,9.699e-05,2]
[420298609,1775932232696,-721.11931486,9.699e-05,2]
[420298610,1775932232711,-721.11931486,9.699e-05,2]
[420298611,1775932232725,-721.11931486,9.699e-05,2]
[420298612,1775932232734,-721.11931486,9.699e-05,2]
[420298613,1775932232745,-721.11931486,9.699e-05,2]
[420298614,1775932232764,-721.11931486,9.699e-05,2]
[420298615,1775932232773,-721.11931486,9.699e-05,2]
[420298616,1775932232784,-202.13392971,9.699e-05,2]
[420298617,1775932232806,-518.98538515,9.699e-05,2]
[420298618,1775932232820,-527.44433939,9.699e-05,2]
[420298619,1775932232834,-193.67497547,9.699e-05,2]
[420298620,1775932232851,-258.3728836,9.699e-05,2]
[420298621,1775932232867,-337.79092,9.699e-05,2]
[420298622,1775932232881,-124.95551126,9.699e-05,2]
[420298623,1775932232891,-604.04448874,9.699e-05,2]
[420298624,1775932232923,-117.07482612,9.699e-05,2]
[420298625,1775932232936,-721.11931486,9.699e-05,2]
[420298626,1775932232960,-721.11931486,9.699e-05,2]
[420298627,1775932232973,-456.49141835,9.699e-05,2]
[420298628,1775932233026,-264.62789651,9.699e-05,2]
[420298629,1775932233040,-88439.275711,9.7e-05,2]
[420298630,1775932233059,-963.98811803,9.7e-05,2]
[420298631,1775932233091,-1200.0,9.7e-05,2]
[420298632,1775932233121,-1800.0,9.7e-05,2]
[420298633,1775932233623,-1270.42179693,9.7e-05,2]
[420298645,1775932238834,-390.26603471,9.7e-05,2]
[420298646,1775932238854,-449.3404125,9.7e-05,2]
[420298647,1775932238871,-10187.24356323,9.7e-05,2]
[420298648,1775932238888,-6566.66693677,9.7e-05,2]
[420298649,1775932238958,-265.712551,9.7e-05,2]
[420298650,1775932238970,-2851.21217869,9.7e-05,2]
[420298651,1775932239012,-3942.26121667,9.7e-05,2]
[420298652,1775932239184,-20197.1028935,9.7e-05,2]
[420298654,1775932240247,-500.0,9.7e-05,2]
[420298655,1775932240263,-751.47362819,9.7e-05,2]
[420298656,1775932241112,-506.50023244,9.699e-05,2]
[420298657,1775932241122,-64.36172119,9.7e-05,2]
[420298658,1775932241142,-1652.27519429,9.7e-05,2]
[420298660,1775932241157,-1347.27935409,9.7e-05,2]
[420298668,1775932243023,-478.97201987,9.7e-05,2]
[420298669,1775932243084,-3200.0,9.7e-05,2]
[420298670,1775932243099,-200027.20026934,9.7e-05,2]
[420298671,1775932243128,-466.0544,9.7e-05,2]
[420298672,1775932243138,-1600.0,9.708e-05,2]
[420298673,1775932243162,-39621.06673626,9.761e-05,2]
[420298674,1775932243174,-15633.17424791,9.761e-05,2]
[420298675,1775932243185,-1607.59263891,9.761e-05,2]
[420298686,1775932245835,-5454.99784789,9.761e-05,2]
[420298687,1775932245868,-2528.300001,9.761e-05,2]
[420298688,1775932246080,-2551.86692419,9.761e-05,2]
[420298689,1775932246176,-7144.71160384,9.761e-05,2]
[420298690,1775932246198,-522.49,9.924e-05,2]
[420298691,1775932246219,-397.35,9.973e-05,2]
[420298692,1775932246235,-175.36154146,0.0001,2]
[420298693,1775932246255,-7595.9405983,0.00010002,2]
[420298694,1775932246273,-462.68137363,0.00010173,2]
[420298695,1775932246287,-500.0,0.00010173,2]
[420298697,1775932246309,-215.47172936,0.00010189,2]
[420298699,1775932246327,-200.0,0.00010193,2]
[420298702,1775932246343,-11510.5341942,0.00010199,2]
[420298705,1775932246373,-436784.11769601,0.00010199,2]
[420298966,1775932400464,458.5,0.00030136,120]
[420298967,1775932400685,458.5,0.00030136,120]
[420298968,1775932401473,458.5,0.00030136,120]
[420298969,1775932401643,458.5,0.00030136,120]
[420298970,1775932901462,534.91,0.00029452,120]
[420298971,1775932952418,500.0,0.00029452,120]
[420298972,1775933312624,500.0,0.0003013,120]
[420298980,1775933435207,-1547.9497,9.498e-05,2]
[420298981,1775933435218,-155.0,9.597e-05,2]
[420298982,1775933435228,-300.0,9.597e-05,2]
[420298983,1775933435236,-150.0,9.597e-05,2]
[420298984,1775933435246,-300.0,9.597e-05,2]
[420298985,1775933435255,-1200.0,9.597e-05,2]
[420298986,1775933435266,-250.0,9.597e-05,2]
[420298987,1775933435277,-485.81,9.598e-05,2]
[420298988,1775933435288,-416.7023,9.599e-05,2]
[420298989,1775933435298,-485.81,9.872e-05,2]
[420298990,1775933435310,-5967.348409,9.961e-05,2]
[420298991,1775933435322,-500.0,9.999e-05,2]
[420298992,1775933435331,-500.0,9.999e-05,2]
[420298993,1775933435340,-500.0,9.999e-05,2]
[420298994,1775933435349,-500.0,9.999e-05,2]
[420298995,1775933435361,-500.0,9.999e-05,2]
[420298996,1775933435371,-500.0,9.999e-05,2]
[420298997,1775933435380,-485.45503785,9.999e-05,2]
[420298998,1775933435389,-313.53606452,9.999e-05,2]
[420298999,1775933435401,-500.0,9.999e-05,2]
[420299000,1775933435410,-500.0,9.999e-05,2]
[420299001,1775933435419,-500.0,9.999e-05,2]
[420299002,1775933435428,-386.46194155,9.999e-05,2]
[420299003,1775933435437,-500.0,9.999e-05,2]
[420299004,1775933435448,-500.0,9.999e-05,2]
[420299005,1775933435457,-500.0,9.999e-05,2]
[420299006,1775933435467,-232.20683068,0.0001,2]
[420299007,1775933435476,-200.0,0.0001,2]
[420299008,1775933435485,-151.0,0.0001,2]
[420299009,1775933435494,-151.0,0.0001,2]
[420299010,1775933435503,-151.0,0.0001,2]
[420299011,1775933435512,-151.0,0.0001,2]
[420299012,1775933435521,-151.0,0.0001,2]
[420299013,1775933435530,-151.0,0.0001,2]
[420299014,1775933435539,-151.0,0.0001,2]
[420299015,1775933435548,-151.0,0.0001,2]
[420299016,1775933435557,-151.0,0.0001,2]
[420299017,1775933435567,-151.0,0.0001,2]
[420299018,1775933435575,-151.0,0.0001,2]
[420299019,1775933435584,-151.0,0.0001,2]
[420299020,1775933435594,-151.0,0.0001,2]
[420299021,1775933435602,-151.0,0.0001,2]
[420299022,1775933435611,-1289.58892491,0.0001,2]
[420299023,1775933435621,-151.0,0.0001,2]
[420299024,1775933435630,-284.42988851,0.0001,2]
[420299025,1775933435639,-500.0,0.00010098,2]
[420299026,1775933435648,-445.35306188,0.00010098,2]
[420299027,1775933435657,-465.39521088,0.00010098,2]
[420299028,1775933435667,-500.0,0.00010098,2]
[420299029,1775933435677,-250.0,0.00010098,2]
[420299030,1775933435687,-500.0,0.00010098,2]
[420299031,1775933435696,-500.0,0.00010098,2]
[420299032,1775933435706,-172.83116453,0.00010098,2]
[420299033,1775933435715,-154385.4324,0.00010099,2]
[420299034,1775933435724,-501.0,0.00010137,2]
[420299035,1775933435734,-485.81,0.00010146,2]
[420299036,1775933435747,-19720.75,0.00010219,2]
[420299037,1775933435757,-152.0,0.00010268,7]
[420299038,1775933435767,-200.0,0.00010285,2]
[420299039,1775933435779,-171.2,0.00010297,2]
[420299040,1775933435789,-151.0,0.00010311,2]
[420299041,1775933435799,-151.0,0.00010334,2]
[420299042,1775933435808,-485.81,0.0001042,2]
[420299043,1775933435824,-7583.45950834,0.00010543,2]
[420299044,1775933435833,-200.0,0.00010548,2]
[420299045,1775933435845,-869.75942963,0.00010548,2]
[420299046,1775933435856,-155.0,0.00010557,2]
[420299047,1775933435868,-2172.76728421,0.00010557,2]
[420299048,1775933435882,-2827.23271579,0.00010557,2]
[420299049,1775933435894,-250.0,0.00010557,2]
[420299050,1775933435907,-250.0,0.00010557,2]
[420299051,1775933435925,-255.0,0.00010557,2]
[420299052,1775933435934,-199.0,0.00010557,2]
[420299053,1775933435950,-1680.0,0.00010557,2]
[420299054,1775933435968,-166.67,0.00010586,2]
[420299055,1775933435977,-2320.002,0.00010602,2]
[420299056,1775933435991,-171.268,0.00010602,2]
[420299057,1775933436004,-485.83,0.00010694,2]
[420299058,1775933436016,-2746.75882877,0.000107,2]
[420299059,1775933436032,-19705.75489404,0.000107,2]
[420299060,1775933436060,-8571.41146574,0.000107,2]
[420299061,1775933436074,-279.79121855,0.000107,2]
[420299062,1775933436105,-271.6399985,0.000107,2]
[420299063,1775933436180,-452.02680172,9.999e-05,2]
[420299064,1775933436263,-47.97319828,9.999e-05,2]
[420299065,1775933436274,-500.0,9.999e-05,2]
[420299066,1775933436283,-500.0,9.999e-05,2]
[420299067,1775933436292,-86.12349172,9.999e-05,2]
[420299068,1775933436304,-413.87650828,9.999e-05,2]
[420299069,1775933436314,-36.12349172,9.999e-05,2]